[Event "November 21 Early 2023"]
[Site "https://www.chess.com"]
[Date "2023.11.21"]
[Round "3"]
[White "Demchenko, Anton"]
[Black "Arifarsky"]
[Result "0-1"]
[Board "12"]
[TimeControl "180+1"]
[WhiteFideId "4160258"]
[WhiteElo "2545"]
[BlackElo "2778"]
[WhiteTeam "SLO"]
[WhiteClock "0:00:09"]
[BlackClock "0:00:16"]

1. e4 {[%clk 0:03:00]}  c5 {[%clk 0:02:56]} 2. Nc3 {[%clk 0:02:59]}  Nc6 {[%clk 0:02:56]} 3. Bb5 {[%clk 0:02:59]}  g6 {[%clk 0:02:52]} 4. Bxc6 {[%clk 0:02:59]}  dxc6 {[%clk 0:02:52]} 5. d3 {[%clk 0:02:59]}  Bg7 {[%clk 0:02:52]} 6. f4 {[%clk 0:02:59]}  Nf6 {[%clk 0:02:51]} 7. Nf3 {[%clk 0:02:58]}  O-O {[%clk 0:02:50]} 8. O-O {[%clk 0:02:58]}  b5 {[%clk 0:02:30]} 9. Ne5 {[%clk 0:02:46]}  Qb6 {[%clk 0:01:43]} 10. Be3 {[%clk 0:02:46]}  Nd7 {[%clk 0:01:43]} 11. Nf3 {[%clk 0:02:45]}  Qc7 {[%clk 0:01:39]} 12. Qe1 {[%clk 0:02:36]}  Ba6 {[%clk 0:01:26]} 13. b3 {[%clk 0:02:25]}  c4 {[%clk 0:01:03]} 14. bxc4 {[%clk 0:02:20]}  bxc4 {[%clk 0:01:02]} 15. d4 {[%clk 0:02:21]}  e6 {[%clk 0:00:53]} 16. Ne5 {[%clk 0:01:53]}  Rfd8 {[%clk 0:00:46]} 17. h4 {[%clk 0:01:37]}  c5 {[%clk 0:00:46]} 18. Nf3 {[%clk 0:00:59]}  cxd4 {[%clk 0:00:42]} 19. Bxd4 {[%clk 0:00:59]}  Bb7 {[%clk 0:00:32]} 20. Bxg7 {[%clk 0:00:58]}  Kxg7 {[%clk 0:00:32]} 21. Rb1 {[%clk 0:00:45]}  Rab8 {[%clk 0:00:31]} 22. Qe3 {[%clk 0:00:36]}  Qc5 {[%clk 0:00:30]} 23. Rfe1 {[%clk 0:00:33]}  Qxe3+ {[%clk 0:00:23]} 24. Rxe3 {[%clk 0:00:34]}  Ba8 {[%clk 0:00:23]} 25. Rxb8 {[%clk 0:00:32]}  Rxb8 {[%clk 0:00:24]} 26. Nd2 {[%clk 0:00:32]}  Rb2 {[%clk 0:00:20]} 27. Nxc4 {[%clk 0:00:33]}  Rxc2 {[%clk 0:00:20]} 28. Nd6 {[%clk 0:00:33]}  Nf6 {[%clk 0:00:18]} 29. Rd3 {[%clk 0:00:22]}  Ng4 {[%clk 0:00:13]} 30. a4 {[%clk 0:00:15]}  Rc1+ {[%clk 0:00:11]} 31. Nd1 {[%clk 0:00:15]}  Bc6 {[%clk 0:00:11]} 32. Nb5 {[%clk 0:00:07]}  Bxe4 {[%clk 0:00:09]} 33. Rd2 {[%clk 0:00:06]}  Bc2 {[%clk 0:00:09]} 34. Nc3 {[%clk 0:00:04]}  Ne3 {[%clk 0:00:10]} 35. Kf2 {[%clk 0:00:02]}  Nxd1+ {[%clk 0:00:10]} 36. Nxd1 {[%clk 0:00:03]}  Bxd1 {[%clk 0:00:11]} 37. Rd7 {[%clk 0:00:03]}  a5 {[%clk 0:00:09]} 38. Ra7 {[%clk 0:00:04]}  Rc4 {[%clk 0:00:09]} 39. Rxa5 {[%clk 0:00:05]}  Rxf4+ {[%clk 0:00:09]} 40. Kg3 {[%clk 0:00:05]}  Rg4+ {[%clk 0:00:08]} 41. Kh3 {[%clk 0:00:05]}  Rxa4 {[%clk 0:00:09]} 42. Rc5 {[%clk 0:00:06]}  Bg4+ {[%clk 0:00:09]} 43. Kg3 {[%clk 0:00:06]}  Bf5 {[%clk 0:00:10]} 44. Rc7 {[%clk 0:00:07]}  Rg4+ {[%clk 0:00:10]} 45. Kf2 {[%clk 0:00:07]}  Rxh4 {[%clk 0:00:10]} 46. g3 {[%clk 0:00:07]}  Rg4 {[%clk 0:00:11]} 47. Ra7 {[%clk 0:00:08]}  h5 {[%clk 0:00:12]} 48. Ra5 {[%clk 0:00:08]}  h4 {[%clk 0:00:12]} 49. gxh4 {[%clk 0:00:09]}  Rxh4 {[%clk 0:00:13]} 50. Kf3 {[%clk 0:00:09]}  Re4 {[%clk 0:00:13]} 51. Rb5 {[%clk 0:00:09]}  g5 {[%clk 0:00:14]} 52. Rb8 {[%clk 0:00:10]}  g4+ {[%clk 0:00:15]} 53. Kg3 {[%clk 0:00:11]}  Kf6 {[%clk 0:00:15]} 54. Kh4 {[%clk 0:00:12]}  Re3 {[%clk 0:00:15]} 55. Rb3 {[%clk 0:00:11]}  Re4 {[%clk 0:00:15]} 56. Rc3 {[%clk 0:00:10]}  g3+ {[%clk 0:00:14]} 57. Kxg3 {[%clk 0:00:11]}  Rg4+ {[%clk 0:00:15]} 58. Kf2 {[%clk 0:00:11]}  Kg5 {[%clk 0:00:16]} 59. Rc8 {[%clk 0:00:11]}  f6 {[%clk 0:00:16]} 60. Rc3 {[%clk 0:00:10]}  e5 {[%clk 0:00:16]} 61. Rc5 {[%clk 0:00:10]}  Kf4 {[%clk 0:00:16]} 62. Rc4+ {[%clk 0:00:10]}  Be4 {[%clk 0:00:17]} 63. Ke1 {[%clk 0:00:10]}  f5 {[%clk 0:00:17]} 64. Rc3 {[%clk 0:00:09]}  Rg3 {[%clk 0:00:18]} 65. Rc8 {[%clk 0:00:08]}  Rg1+ {[%clk 0:00:17]} 66. Kd2 {[%clk 0:00:09]}  Rg2+ {[%clk 0:00:17]} 67. Kd1 {[%clk 0:00:09]}  Ke3 {[%clk 0:00:16]} 68. Re8 {[%clk 0:00:09]}  Rg1# {[%clk 0:00:16]} 0-1

[Event "November 21 Early 2023"]
[Site "https://www.chess.com"]
[Date "2023.11.21"]
[Round "3"]
[White "Djordjevic, Vuk"]
[Black "Galchenko, Matvey"]
[Result "0-1"]
[Board "14"]
[TimeControl "180+1"]
[WhiteFideId "902098"]
[BlackFideId "24175480"]
[WhiteElo "2425"]
[BlackElo "2406"]
[WhiteTeam "SRB"]
[BlackTeam "FID"]
[WhiteClock "0:00:03"]
[BlackClock "0:00:06"]

1. d4 {[%clk 0:03:00]}  Nf6 {[%clk 0:02:59]} 2. Bg5 {[%clk 0:03:01]}  Ne4 {[%clk 0:02:59]} 3. Bf4 {[%clk 0:03:01]}  c5 {[%clk 0:02:59]} 4. f3 {[%clk 0:03:01]}  Qa5+ {[%clk 0:02:59]} 5. c3 {[%clk 0:03:01]}  Nf6 {[%clk 0:02:59]} 6. d5 {[%clk 0:03:01]}  e6 {[%clk 0:02:59]} 7. e4 {[%clk 0:03:01]}  exd5 {[%clk 0:02:59]} 8. exd5 {[%clk 0:03:02]}  d6 {[%clk 0:02:59]} 9. Na3 {[%clk 0:02:57]}  Be7 {[%clk 0:02:57]} 10. Nc4 {[%clk 0:02:57]}  Qc7 {[%clk 0:02:57]} 11. g4 {[%clk 0:02:47]}  O-O {[%clk 0:02:51]} 12. Ne3 {[%clk 0:02:46]}  Re8 {[%clk 0:02:47]} 13. Qd2 {[%clk 0:02:42]}  Nbd7 {[%clk 0:02:45]} 14. h4 {[%clk 0:02:40]}  Bf8 {[%clk 0:02:42]} 15. Ne2 {[%clk 0:02:29]}  Ne5 {[%clk 0:02:40]} 16. Kf2 {[%clk 0:02:29]}  Nexg4+ {[%clk 0:02:28]} 17. Nxg4 {[%clk 0:02:26]}  Bxg4 {[%clk 0:02:28]} 18. Ng3 {[%clk 0:02:25]}  Bd7 {[%clk 0:02:14]} 19. c4 {[%clk 0:02:20]}  b5 {[%clk 0:02:10]} 20. cxb5 {[%clk 0:02:17]}  Qb7 {[%clk 0:02:07]} 21. Rd1 {[%clk 0:01:49]}  Bxb5 {[%clk 0:02:02]} 22. Bxb5 {[%clk 0:01:44]}  Qxb5 {[%clk 0:02:03]} 23. h5 {[%clk 0:01:45]}  Rab8 {[%clk 0:01:58]} 24. Rb1 {[%clk 0:01:28]}  Qc4 {[%clk 0:01:57]} 25. Rhd1 {[%clk 0:01:24]}  Qxa2 {[%clk 0:01:47]} 26. Ra1 {[%clk 0:01:22]}  Qxb2 {[%clk 0:01:43]} 27. Rxa7 {[%clk 0:01:22]}  Nxd5 {[%clk 0:01:34]} 28. Ra2 {[%clk 0:01:02]}  Qxd2+ {[%clk 0:01:25]} 29. Bxd2 {[%clk 0:01:03]}  Rb3 {[%clk 0:01:19]} 30. Ne4 {[%clk 0:00:52]}  Rd3 {[%clk 0:01:13]} 31. Rg1 {[%clk 0:00:38]}  f5 {[%clk 0:01:09]} 32. Ng3 {[%clk 0:00:37]}  Ne3 {[%clk 0:00:43]} 33. Bxe3 {[%clk 0:00:29]}  Rexe3 {[%clk 0:00:42]} 34. Nxf5 {[%clk 0:00:30]}  Rxf3+ {[%clk 0:00:42]} 35. Ke2 {[%clk 0:00:30]}  Rb3 {[%clk 0:00:24]} 36. Rg5 {[%clk 0:00:10]}  h6 {[%clk 0:00:20]} 37. Nxh6+ {[%clk 0:00:09]}  Kh7 {[%clk 0:00:21]} 38. Ng4 {[%clk 0:00:10]}  Rg3 {[%clk 0:00:18]} 39. Ra7 {[%clk 0:00:07]}  Rb2+ {[%clk 0:00:12]} 40. Kf1 {[%clk 0:00:08]}  Rf3+ {[%clk 0:00:13]} 41. Kg1 {[%clk 0:00:07]}  Rb4 {[%clk 0:00:07]} 42. Rg6 {[%clk 0:00:03]}  Rg3+ {[%clk 0:00:06]} 0-1

[Event "November 21 Early 2023"]
[Site "https://www.chess.com"]
[Date "2023.11.21"]
[Round "3"]
[White "Krzyzanowski, Marcin"]
[Black "Gholami Orimi, Mahdi"]
[Result "0-1"]
[Board "20"]
[TimeControl "180+1"]
[WhiteFideId "1132199"]
[BlackFideId "12558486"]
[WhiteElo "2471"]
[BlackElo "2331"]
[WhiteTeam "POL"]
[BlackTeam "IRI"]
[WhiteClock "0:00:00"]
[BlackClock "0:00:10"]

1. e4 {[%clk 0:03:00]}  c5 {[%clk 0:02:58]} 2. Nf3 {[%clk 0:03:00]}  d6 {[%clk 0:02:59]} 3. Bb5+ {[%clk 0:02:59]}  Bd7 {[%clk 0:02:59]} 4. Bxd7+ {[%clk 0:02:57]}  Nxd7 {[%clk 0:03:00]} 5. O-O {[%clk 0:02:57]}  Ngf6 {[%clk 0:03:00]} 6. Qe2 {[%clk 0:02:51]}  e6 {[%clk 0:03:00]} 7. c3 {[%clk 0:02:51]}  Be7 {[%clk 0:03:00]} 8. d4 {[%clk 0:02:52]}  O-O {[%clk 0:03:01]} 9. e5 {[%clk 0:02:50]}  Ne8 {[%clk 0:02:56]} 10. Nbd2 {[%clk 0:02:49]}  cxd4 {[%clk 0:02:57]} 11. cxd4 {[%clk 0:02:50]}  Nc7 {[%clk 0:02:48]} 12. Ne4 {[%clk 0:02:49]}  dxe5 {[%clk 0:02:49]} 13. dxe5 {[%clk 0:02:49]}  Nd5 {[%clk 0:02:49]} 14. Bg5 {[%clk 0:02:38]}  Bxg5 {[%clk 0:02:49]} 15. Nexg5 {[%clk 0:02:39]}  h6 {[%clk 0:02:39]} 16. Ne4 {[%clk 0:02:37]}  Qe7 {[%clk 0:02:30]} 17. Rac1 {[%clk 0:02:34]}  Rfd8 {[%clk 0:02:30]} 18. Rc2 {[%clk 0:02:19]}  Nf8 {[%clk 0:02:27]} 19. Rfc1 {[%clk 0:02:17]}  Ng6 {[%clk 0:02:27]} 20. g3 {[%clk 0:02:13]}  b6 {[%clk 0:02:25]} 21. h4 {[%clk 0:02:12]}  Nb4 {[%clk 0:02:21]} 22. Rc7 {[%clk 0:02:11]}  Rd7 {[%clk 0:02:21]} 23. Rc8+ {[%clk 0:02:04]}  Rxc8 {[%clk 0:02:20]} 24. Rxc8+ {[%clk 0:02:05]}  Rd8 {[%clk 0:02:20]} 25. Qc4 {[%clk 0:01:53]}  Nd5 {[%clk 0:01:44]} 26. h5 {[%clk 0:01:34]}  Nf8 {[%clk 0:01:44]} 27. Nd6 {[%clk 0:01:33]}  Nd7 {[%clk 0:01:36]} 28. a3 {[%clk 0:00:59]}  Nxe5 {[%clk 0:01:17]} 29. Nxe5 {[%clk 0:00:48]}  Qxd6 {[%clk 0:01:15]} 30. Qc6 {[%clk 0:00:35]}  Qf8 {[%clk 0:01:00]} 31. Rxd8 {[%clk 0:00:28]}  Qxd8 {[%clk 0:01:01]} 32. Qb7 {[%clk 0:00:27]}  Qc7 {[%clk 0:00:59]} 33. Qa8+ {[%clk 0:00:15]}  Kh7 {[%clk 0:00:58]} 34. f4 {[%clk 0:00:16]}  Qc1+ {[%clk 0:00:49]} 35. Kh2 {[%clk 0:00:16]}  Qd1 {[%clk 0:00:41]} 36. g4 {[%clk 0:00:10]}  Qe2+ {[%clk 0:00:39]} 37. Kg1 {[%clk 0:00:06]}  Qe1+ {[%clk 0:00:39]} 38. Kh2 {[%clk 0:00:05]}  Qf2+ {[%clk 0:00:37]} 39. Kh1 {[%clk 0:00:05]}  Qxf4 {[%clk 0:00:34]} 40. Nd7 {[%clk 0:00:05]}  Qf1+ {[%clk 0:00:24]} 41. Kh2 {[%clk 0:00:05]}  Qf2+ {[%clk 0:00:25]} 42. Kh1 {[%clk 0:00:05]}  Qh4+ {[%clk 0:00:25]} 43. Kg1 {[%clk 0:00:05]}  Qxg4+ {[%clk 0:00:26]} 44. Kf2 {[%clk 0:00:05]}  Qh4+ {[%clk 0:00:25]} 45. Kf1 {[%clk 0:00:04]}  Qh1+ {[%clk 0:00:24]} 46. Kf2 {[%clk 0:00:04]}  Qh2+ {[%clk 0:00:24]} 47. Ke1 {[%clk 0:00:04]}  Qg1+ {[%clk 0:00:22]} 48. Kd2 {[%clk 0:00:04]}  Qd4+ {[%clk 0:00:23]} 49. Kc1 {[%clk 0:00:03]}  Qg1+ {[%clk 0:00:19]} 50. Kd2 {[%clk 0:00:03]}  Qe3+ {[%clk 0:00:16]} 51. Kc2 {[%clk 0:00:02]}  Qe4+ {[%clk 0:00:13]} 52. Kc1 {[%clk 0:00:03]}  Qc4+ {[%clk 0:00:11]} 53. Kb1 {[%clk 0:00:03]}  Nc3+ {[%clk 0:00:11]} 54. Kc2 {[%clk 0:00:02]}  Nb5+ {[%clk 0:00:09]} 55. Kd1 {[%clk 0:00:02]}  Qd3+ {[%clk 0:00:10]} 56. Kc1 {[%clk 0:00:02]}  Qxd7 {[%clk 0:00:10]} 57. Kb1 {[%clk 0:00:00]}  Qd3+ {[%clk 0:00:10]} 0-1

[Event "November 21 Early 2023"]
[Site "https://www.chess.com"]
[Date "2023.11.21"]
[Round "3"]
[White "Begmuratov, Alisher"]
[Black "Khismatullin, Denis"]
[Result "0-1"]
[Board "22"]
[TimeControl "180+1"]
[WhiteFideId "14203367"]
[BlackFideId "4142578"]
[WhiteElo "2387"]
[BlackElo "2552"]
[WhiteTeam "UZB"]
[BlackTeam "RUS"]
[WhiteClock "0:00:31"]
[BlackClock "0:00:34"]

1. e4 {[%clk 0:03:00]}  c5 {[%clk 0:02:58]} 2. Nf3 {[%clk 0:03:00]}  d6 {[%clk 0:02:59]} 3. Bb5+ {[%clk 0:03:00]}  Nd7 {[%clk 0:02:57]} 4. a4 {[%clk 0:02:59]}  Nf6 {[%clk 0:02:55]} 5. Nc3 {[%clk 0:02:59]}  a6 {[%clk 0:02:51]} 6. Be2 {[%clk 0:02:59]}  g6 {[%clk 0:02:49]} 7. O-O {[%clk 0:02:58]}  Bg7 {[%clk 0:02:50]} 8. d3 {[%clk 0:02:58]}  b6 {[%clk 0:02:49]} 9. Nd2 {[%clk 0:02:58]}  O-O {[%clk 0:02:47]} 10. Nc4 {[%clk 0:02:57]}  Bb7 {[%clk 0:02:41]} 11. Bf4 {[%clk 0:02:57]}  Ne8 {[%clk 0:02:33]} 12. Qd2 {[%clk 0:02:54]}  e5 {[%clk 0:02:24]} 13. Bh6 {[%clk 0:02:53]}  f5 {[%clk 0:02:23]} 14. Bxg7 {[%clk 0:02:51]}  Kxg7 {[%clk 0:02:24]} 15. exf5 {[%clk 0:02:50]}  gxf5 {[%clk 0:02:19]} 16. f4 {[%clk 0:02:50]}  Kh8 {[%clk 0:02:04]} 17. fxe5 {[%clk 0:02:50]}  dxe5 {[%clk 0:02:04]} 18. Bf3 {[%clk 0:02:50]}  Bxf3 {[%clk 0:01:59]} 19. Rxf3 {[%clk 0:02:51]}  Ng7 {[%clk 0:01:50]} 20. Re1 {[%clk 0:02:49]}  Qf6 {[%clk 0:01:48]} 21. Nd5 {[%clk 0:02:24]}  Qc6 {[%clk 0:01:40]} 22. Nc3 {[%clk 0:01:31]}  Rae8 {[%clk 0:01:39]} 23. Rfe3 {[%clk 0:01:31]}  f4 {[%clk 0:01:08]} 24. Re4 {[%clk 0:01:22]}  Rf5 {[%clk 0:01:06]} 25. Ne2 {[%clk 0:01:11]}  b5 {[%clk 0:01:03]} 26. axb5 {[%clk 0:01:08]}  axb5 {[%clk 0:01:02]} 27. Na3 {[%clk 0:01:04]}  Nf6 {[%clk 0:00:52]} 28. Nc3 {[%clk 0:00:51]}  b4 {[%clk 0:00:52]} 29. Nc4 {[%clk 0:00:49]}  bxc3 {[%clk 0:00:50]} 30. Qxc3 {[%clk 0:00:49]}  Nxe4 {[%clk 0:00:49]} 31. Rxe4 {[%clk 0:00:49]}  Qf6 {[%clk 0:00:46]} 32. Kf2 {[%clk 0:00:46]}  Qh4+ {[%clk 0:00:42]} 33. Kg1 {[%clk 0:00:45]}  Qg5 {[%clk 0:00:37]} 34. Nd6 {[%clk 0:00:31]}  f3 {[%clk 0:00:34]} 0-1

[Event "November 21 Early 2023"]
[Site "https://www.chess.com"]
[Date "2023.11.21"]
[Round "3"]
[White "Drygalov, Sergey"]
[Black "Orujov2008"]
[Result "1-0"]
[Board "24"]
[TimeControl "180+1"]
[WhiteFideId "24171743"]
[WhiteElo "2502"]
[BlackElo "2728"]
[WhiteTeam "RUS"]
[WhiteClock "0:01:25"]
[BlackClock "0:01:03"]

1. d4 {[%clk 0:03:00]}  d5 {[%clk 0:02:58]} 2. c4 {[%clk 0:03:01]}  c6 {[%clk 0:02:59]} 3. Nc3 {[%clk 0:03:02]}  Nf6 {[%clk 0:02:59]} 4. Nf3 {[%clk 0:03:02]}  e6 {[%clk 0:02:59]} 5. e3 {[%clk 0:03:01]}  Nbd7 {[%clk 0:02:54]} 6. Qc2 {[%clk 0:03:02]}  Bd6 {[%clk 0:02:49]} 7. Bd3 {[%clk 0:03:00]}  O-O {[%clk 0:02:44]} 8. O-O {[%clk 0:02:59]}  e5 {[%clk 0:02:43]} 9. cxd5 {[%clk 0:02:58]}  cxd5 {[%clk 0:02:40]} 10. e4 {[%clk 0:02:52]}  exd4 {[%clk 0:02:39]} 11. Nxd5 {[%clk 0:02:52]}  Nxd5 {[%clk 0:02:36]} 12. exd5 {[%clk 0:02:53]}  h6 {[%clk 0:02:36]} 13. Rd1 {[%clk 0:02:48]}  Nf6 {[%clk 0:02:30]} 14. Nxd4 {[%clk 0:02:48]}  Nxd5 {[%clk 0:02:25]} 15. Bh7+ {[%clk 0:02:45]}  Kh8 {[%clk 0:02:25]} 16. Bf5 {[%clk 0:02:42]}  Nb4 {[%clk 0:02:14]} 17. Qb3 {[%clk 0:02:37]}  a5 {[%clk 0:02:04]} 18. Be3 {[%clk 0:02:32]}  a4 {[%clk 0:02:00]} 19. Qc4 {[%clk 0:02:29]}  a3 {[%clk 0:01:58]} 20. bxa3 {[%clk 0:02:20]}  Rxa3 {[%clk 0:01:59]} 21. Nb5 {[%clk 0:02:17]}  Ra6 {[%clk 0:01:52]} 22. Bxc8 {[%clk 0:02:13]}  Qxc8 {[%clk 0:01:46]} 23. Qxc8 {[%clk 0:02:07]}  Bxh2+ {[%clk 0:01:45]} 24. Kxh2 {[%clk 0:02:06]}  Rxc8 {[%clk 0:01:46]} 25. Nd6 {[%clk 0:02:05]}  Rc7 {[%clk 0:01:41]} 26. Rac1 {[%clk 0:02:00]}  Rxc1 {[%clk 0:01:37]} 27. Bxc1 {[%clk 0:02:01]}  Rxa2 {[%clk 0:01:38]} 28. Be3 {[%clk 0:01:58]}  f6 {[%clk 0:01:31]} 29. Nxb7 {[%clk 0:01:54]}  Kh7 {[%clk 0:01:27]} 30. Rd7 {[%clk 0:01:50]}  Nc6 {[%clk 0:01:27]} 31. Nc5 {[%clk 0:01:40]}  Ne5 {[%clk 0:01:26]} 32. Rb7 {[%clk 0:01:33]}  Kg6 {[%clk 0:01:23]} 33. Ne6 {[%clk 0:01:32]}  Ng4+ {[%clk 0:01:17]} 34. Kg3 {[%clk 0:01:31]}  h5 {[%clk 0:01:18]} 35. Rxg7+ {[%clk 0:01:30]}  Kf5 {[%clk 0:01:12]} 36. Nd4+ {[%clk 0:01:30]}  Ke5 {[%clk 0:01:09]} 37. Re7+ {[%clk 0:01:30]}  Kd6 {[%clk 0:01:07]} 38. Nf5+ {[%clk 0:01:29]}  Kc6 {[%clk 0:01:03]} 39. f3 {[%clk 0:01:25]} 1-0

[Event "November 21 Early 2023"]
[Site "https://www.chess.com"]
[Date "2023.11.21"]
[Round "3"]
[White "Rasulov, Vugar"]
[Black "Goltsev, Dmitry"]
[Result "1/2-1/2"]
[Board "26"]
[TimeControl "180+1"]
[WhiteFideId "13402390"]
[BlackFideId "24176710"]
[WhiteElo "2517"]
[BlackElo "2370"]
[WhiteTeam "AZE"]
[BlackTeam "RUS"]
[WhiteClock "0:00:48"]
[BlackClock "0:01:45"]

1. d4 {[%clk 0:03:00]}  e6 {[%clk 0:02:59]} 2. Nf3 {[%clk 0:02:59]}  Nf6 {[%clk 0:02:59]} 3. g3 {[%clk 0:02:59]}  d5 {[%clk 0:03:00]} 4. Bg2 {[%clk 0:02:59]}  c5 {[%clk 0:03:01]} 5. O-O {[%clk 0:02:59]}  Nc6 {[%clk 0:03:02]} 6. c4 {[%clk 0:02:56]}  dxc4 {[%clk 0:03:01]} 7. Ne5 {[%clk 0:02:52]}  Nxe5 {[%clk 0:02:50]} 8. dxe5 {[%clk 0:02:53]}  Qxd1 {[%clk 0:02:51]} 9. Rxd1 {[%clk 0:02:51]}  Nd7 {[%clk 0:02:52]} 10. Na3 {[%clk 0:02:51]}  Nxe5 {[%clk 0:02:45]} 11. Bf4 {[%clk 0:02:50]}  f6 {[%clk 0:02:44]} 12. Bxe5 {[%clk 0:02:49]}  fxe5 {[%clk 0:02:45]} 13. Nxc4 {[%clk 0:02:49]}  Be7 {[%clk 0:02:44]} 14. a4 {[%clk 0:02:44]}  O-O {[%clk 0:02:43]} 15. a5 {[%clk 0:02:44]}  Rd8 {[%clk 0:02:38]} 16. a6 {[%clk 0:02:30]}  Rb8 {[%clk 0:02:36]} 17. Na5 {[%clk 0:02:24]}  Kf7 {[%clk 0:02:15]} 18. axb7 {[%clk 0:02:15]}  Bd7 {[%clk 0:02:13]} 19. Nc4 {[%clk 0:02:05]}  Kf6 {[%clk 0:02:11]} 20. Rxa7 {[%clk 0:02:02]}  Bb5 {[%clk 0:02:06]} 21. Rc1 {[%clk 0:01:53]}  Bxc4 {[%clk 0:02:01]} 22. Rxc4 {[%clk 0:01:54]}  Rd1+ {[%clk 0:02:01]} 23. Bf1 {[%clk 0:01:52]}  Rd7 {[%clk 0:02:02]} 24. Rc3 {[%clk 0:01:27]}  Rdxb7 {[%clk 0:01:57]} 25. Rf3+ {[%clk 0:01:27]}  Kg6 {[%clk 0:01:56]} 26. Ra6 {[%clk 0:01:22]}  Rxb2 {[%clk 0:01:55]} 27. Rxe6+ {[%clk 0:01:21]}  Bf6 {[%clk 0:01:56]} 28. Kg2 {[%clk 0:01:16]}  R2b6 {[%clk 0:01:55]} 29. Rxb6 {[%clk 0:01:13]}  Rxb6 {[%clk 0:01:55]} 30. e3 {[%clk 0:01:14]}  h6 {[%clk 0:01:53]} 31. g4 {[%clk 0:01:09]}  Rb4 {[%clk 0:01:51]} 32. e4 {[%clk 0:01:07]}  Kf7 {[%clk 0:01:50]} 33. Bd3 {[%clk 0:00:58]}  Ke7 {[%clk 0:01:49]} 34. Re3 {[%clk 0:00:55]}  Rb3 {[%clk 0:01:46]} 35. Bc4 {[%clk 0:00:47]}  Rxe3 {[%clk 0:01:46]} 36. fxe3 {[%clk 0:00:48]}  Kd6 {[%clk 0:01:45]} 37. Kf3 {[%clk 0:00:48]} 1/2-1/2

[Event "November 21 Early 2023"]
[Site "https://www.chess.com"]
[Date "2023.11.21"]
[Round "3"]
[White "Zhigalko, Sergei"]
[Black "Shoker, Samy"]
[Result "0-1"]
[Board "28"]
[TimeControl "180+1"]
[WhiteFideId "13502956"]
[BlackFideId "627143"]
[WhiteElo "2616"]
[BlackElo "2475"]
[WhiteTeam "BLR"]
[BlackTeam "EGY"]
[WhiteClock "0:00:00"]
[BlackClock "0:00:18"]

1. e4 {[%clk 0:03:00]}  g6 {[%clk 0:02:56]} 2. d4 {[%clk 0:03:01]}  Bg7 {[%clk 0:02:56]} 3. Nc3 {[%clk 0:03:01]}  c5 {[%clk 0:02:57]} 4. dxc5 {[%clk 0:03:00]}  Bxc3+ {[%clk 0:02:57]} 5. bxc3 {[%clk 0:03:01]}  Nc6 {[%clk 0:02:57]} 6. Be3 {[%clk 0:02:52]}  Qa5 {[%clk 0:02:56]} 7. Qd2 {[%clk 0:02:52]}  Nf6 {[%clk 0:02:56]} 8. f3 {[%clk 0:02:51]}  O-O {[%clk 0:02:54]} 9. Bd3 {[%clk 0:02:48]}  b6 {[%clk 0:02:54]} 10. cxb6 {[%clk 0:02:48]}  axb6 {[%clk 0:02:55]} 11. Ne2 {[%clk 0:02:40]}  d5 {[%clk 0:02:49]} 12. O-O {[%clk 0:02:39]}  dxe4 {[%clk 0:02:46]} 13. fxe4 {[%clk 0:02:40]}  Rd8 {[%clk 0:02:42]} 14. Nd4 {[%clk 0:02:36]}  Nxd4 {[%clk 0:02:14]} 15. cxd4 {[%clk 0:02:34]}  Qxd2 {[%clk 0:02:14]} 16. Bxd2 {[%clk 0:02:35]}  Rxd4 {[%clk 0:02:15]} 17. Bc3 {[%clk 0:02:27]}  Rda4 {[%clk 0:02:09]} 18. Rab1 {[%clk 0:01:46]}  Be6 {[%clk 0:01:07]} 19. Rxb6 {[%clk 0:01:00]}  Nd7 {[%clk 0:01:04]} 20. Rxe6 {[%clk 0:00:16]}  fxe6 {[%clk 0:01:03]} 21. Bb5 {[%clk 0:00:16]}  Nc5 {[%clk 0:00:56]} 22. Bxa4 {[%clk 0:00:12]}  Rxa4 {[%clk 0:00:57]} 23. a3 {[%clk 0:00:06]}  Nxe4 {[%clk 0:00:44]} 24. Bb4 {[%clk 0:00:06]}  Nd6 {[%clk 0:00:45]} 25. Rc1 {[%clk 0:00:02]}  Nc4 {[%clk 0:00:22]} 26. Bxe7 {[%clk 0:00:02]}  Kf7 {[%clk 0:00:23]} 27. Bc5 {[%clk 0:00:02]}  e5 {[%clk 0:00:23]} 28. Ra1 {[%clk 0:00:02]}  Ke6 {[%clk 0:00:24]} 29. Bb4 {[%clk 0:00:00]}  Kd5 {[%clk 0:00:18]} 0-1

[Event "November 21 Early 2023"]
[Site "https://www.chess.com"]
[Date "2023.11.21"]
[Round "3"]
[White "Shuvalova, Polina"]
[Black "Henriquez Villagra, Cristobal"]
[Result "0-1"]
[Board "29"]
[TimeControl "180+1"]
[WhiteFideId "24171760"]
[BlackFideId "3409350"]
[WhiteElo "2342"]
[BlackElo "2572"]
[WhiteTeam "RUS"]
[BlackTeam "CHI"]
[WhiteClock "0:00:09"]
[BlackClock "0:00:34"]

1. e4 {[%clk 0:03:00]}  d6 {[%clk 0:03:00]} 2. d4 {[%clk 0:03:00]}  Nf6 {[%clk 0:03:00]} 3. Bd3 {[%clk 0:03:00]}  e5 {[%clk 0:03:00]} 4. Nf3 {[%clk 0:02:59]}  Nc6 {[%clk 0:02:59]} 5. c3 {[%clk 0:02:57]}  Bg4 {[%clk 0:02:55]} 6. Be3 {[%clk 0:02:57]}  Be7 {[%clk 0:02:52]} 7. O-O {[%clk 0:02:54]}  O-O {[%clk 0:02:51]} 8. Nbd2 {[%clk 0:02:52]}  Bh5 {[%clk 0:02:49]} 9. h3 {[%clk 0:02:48]}  Re8 {[%clk 0:02:37]} 10. Re1 {[%clk 0:02:47]}  Bf8 {[%clk 0:02:36]} 11. a3 {[%clk 0:02:44]}  Bg6 {[%clk 0:02:31]} 12. Qc2 {[%clk 0:02:39]}  h6 {[%clk 0:02:30]} 13. Rad1 {[%clk 0:02:38]}  Qc8 {[%clk 0:02:29]} 14. b4 {[%clk 0:02:25]}  a6 {[%clk 0:02:29]} 15. c4 {[%clk 0:02:19]}  exd4 {[%clk 0:02:26]} 16. Nxd4 {[%clk 0:02:19]}  Ne5 {[%clk 0:02:27]} 17. Bf1 {[%clk 0:02:13]}  d5 {[%clk 0:01:58]} 18. cxd5 {[%clk 0:01:48]}  Nxd5 {[%clk 0:01:57]} 19. f4 {[%clk 0:01:42]}  c5 {[%clk 0:01:52]} 20. fxe5 {[%clk 0:01:33]}  Nxe3 {[%clk 0:01:50]} 21. Rxe3 {[%clk 0:01:31]}  cxd4 {[%clk 0:01:50]} 22. Qxc8 {[%clk 0:01:30]}  Raxc8 {[%clk 0:01:51]} 23. Rd3 {[%clk 0:01:26]}  Rxe5 {[%clk 0:01:48]} 24. Rxd4 {[%clk 0:01:24]}  Be7 {[%clk 0:01:47]} 25. Bd3 {[%clk 0:00:57]}  Bg5 {[%clk 0:01:40]} 26. Rd7 {[%clk 0:00:51]}  b5 {[%clk 0:01:34]} 27. Nf3 {[%clk 0:00:51]}  Re7 {[%clk 0:01:35]} 28. Rxe7 {[%clk 0:00:49]}  Bxe7 {[%clk 0:01:36]} 29. e5 {[%clk 0:00:48]}  Rd8 {[%clk 0:01:06]} 30. Be2 {[%clk 0:00:41]}  Be4 {[%clk 0:01:06]} 31. Rxd8+ {[%clk 0:00:34]}  Bxd8 {[%clk 0:01:07]} 32. Kf2 {[%clk 0:00:33]}  Bb6+ {[%clk 0:01:06]} 33. Ke1 {[%clk 0:00:33]}  Be3 {[%clk 0:01:01]} 34. Kd1 {[%clk 0:00:25]}  Kf8 {[%clk 0:01:01]} 35. Ne1 {[%clk 0:00:22]}  Bd4 {[%clk 0:00:57]} 36. Bf3 {[%clk 0:00:19]}  Bxf3+ {[%clk 0:00:52]} 37. Nxf3 {[%clk 0:00:20]}  Bb2 {[%clk 0:00:53]} 38. Kc2 {[%clk 0:00:18]}  Bxa3 {[%clk 0:00:53]} 39. Kb3 {[%clk 0:00:17]}  Bc1 {[%clk 0:00:53]} 40. Nd4 {[%clk 0:00:14]}  Ke8 {[%clk 0:00:47]} 41. Kc3 {[%clk 0:00:14]}  Bf4 {[%clk 0:00:46]} 42. Nc6 {[%clk 0:00:13]}  Kd7 {[%clk 0:00:40]} 43. Nb8+ {[%clk 0:00:13]}  Ke6 {[%clk 0:00:40]} 44. Nxa6 {[%clk 0:00:14]}  Bxe5+ {[%clk 0:00:40]} 45. Kd3 {[%clk 0:00:14]}  Kd5 {[%clk 0:00:35]} 46. g4 {[%clk 0:00:15]}  Bd6 {[%clk 0:00:35]} 47. Kc3 {[%clk 0:00:13]}  g6 {[%clk 0:00:34]} 48. Kd3 {[%clk 0:00:13]}  f5 {[%clk 0:00:35]} 49. gxf5 {[%clk 0:00:13]}  gxf5 {[%clk 0:00:36]} 50. Ke3 {[%clk 0:00:14]}  Kc6 {[%clk 0:00:33]} 51. Kd4 {[%clk 0:00:13]}  Kb6 {[%clk 0:00:33]} 52. Kd5 {[%clk 0:00:11]}  Kxa6 {[%clk 0:00:33]} 53. Kxd6 {[%clk 0:00:09]}  f4 {[%clk 0:00:34]} 0-1